Cogmind - Beta 15 @@@ ROGUE MODE // 2025.07.08 @ 03:08:44 Player: daxter767676 Result: Destroyed by P-80 Master with Gamma Rifle Performance ------------- Evolutions (7) 3500 Regions Visited (11) 2200 Robots Destroyed (67) 335 Value Destroyed (3302) 3302 Prototype IDs (8) 160 Alien Tech Used (0) 0 Bonus (1300) 1300 TOTAL SCORE: 10797 Bonus ------- Entered DSFs 500 Registered with UFD 300 Met Optimus in HQ 500 Cogmind --------- Core Integrity 0/1300 Matter 74/300 Energy 100/100 System Corruption 10% Temperature Cool (0) Movement Core (200) Ox3 Location -3/Research Parts ------- > --- POWER (2) -------- (None) > --- PROPULSION (6) --- (None) > --- UTILITY (9) ------ Improved Salvage Targeting Computer Improved Melee Analysis Suite Advanced Melee Analysis Suite Authchip [R/Combat] > --- WEAPON (4) ------- Lance (fused) Enhanced Force Lance > --- INVENTORY (5) ---- Heavy Shield Leg Advanced Energy Well Advanced Sensor Array Advanced Force Field Peak State ------------ > --- POWER ------------ Micro Fission Core Antimatter Reactor > --- PROPULSION ------- Combat Antigrav System Antigrav Array Combat Linear Gravjet Impulse Thruster Array > --- UTILITY ---------- Advanced Sensor Array Improved Melee Analysis Suite Advanced Melee Analysis Suite Advanced Melee Analysis Suite Improved Target Analyzer Precision Matter Filter Improved Propulsion Shielding Authchip [R/Combat] > --- WEAPON ----------- Enhanced Quantum Rifle Linear Accelerator Enhanced Hardcell Cannon Great Axe > --- INVENTORY -------- Heavy Shield Leg Advanced Sensor Array Improved Salvage Targeting Computer Improved Target Analyzer [Rating: 133] Favorites ----------- Power Light Deuterium Engine Engine Light Deuterium Engine Power Core Light Fission Core Reactor Antimatter Reactor Propulsion Armored Huge Wheel Leg Thunder Leg Wheel Armored Huge Wheel Hover Unit Antigrav Array Flight Unit VTOL Module Utility Advanced Melee Analysis Suite Device Advanced Sensor Array Storage Huge Storage Unit Processor Advanced Melee Analysis Suite Hackware Authchip [R/Combat] Protection Improved Medium Armor Plating Weapon Flail Energy Gun Enhanced Quantum Rifle Ballistic Gun Overtuned Barrage Gun Ballistic Cannon Enhanced Hardcell Cannon Launcher Mini Grenade Launcher Impact Weapon Flail Slashing Weapon Great Axe Piercing Weapon Spear Special Melee Weapon Advanced Datajack Build | -11 -10 -10 -8 -8 -6 -5 -5 -4 -4 -4 -3 ------- Run | Yrd Mat Sub Rec Scr Fac Fac DSF Fac Was Fac Res Slots Evolved 14 | . . . . . 8 2 . 2 . . 2 Power 1 | . . . . . . 1 . . . . . Propulsion 4 | . . . . . 2 . . 2 . . . Utility 7 | . . . . . 5 1 . . . . 1 Weapon 2 | . . . . . 1 . . . . . 1 Parts Attached 122 | . 9 1 . 8 42 5 10 24 6 3 14 Power 20 | . . 1 . 1 5 1 2 7 1 1 1 Engine 8 | . . 1 . 1 4 1 . 1 . . . Core 8 | . . . . . 1 . . 6 1 . . Reactor 4 | . . . . . . . 2 . . 1 1 Propulsion 32 | . 3 . . 3 11 . 3 5 2 . 5 Treads . | . . . . . . . . . . . . Leg 5 | . . . . . 4 . . . . . 1 Wheel 18 | . . . . 1 7 . 3 5 . . 2 Hover 3 | . . . . . . . . . 2 . 1 Flight 6 | . 3 . . 2 . . . . . . 1 Utility 43 | . 2 . . 2 16 4 2 9 1 2 5 Device 17 | . . . . . 5 2 1 5 . 1 3 Storage 3 | . . . . 2 1 . . . . . . Processor 12 | . 1 . . . 4 2 . 2 . 1 2 Hackware 1 | . . . . . . . . 1 . . . Protection 10 | . 1 . . . 6 . 1 1 1 . . Artifact . | . . . . . . . . . . . . Weapon 27 | . 4 . . 2 10 . 3 3 2 . 3 Energy Gun 3 | . . . . . . . . 2 1 . . Energy Cannon . | . . . . . . . . . . . . Ballistic Gun 4 | . 2 . . . 2 . . . . . . Ballistic Cannon 2 | . . . . . . . . . 1 . 1 Launcher 1 | . . . . . 1 . . . . . . Special Weapon . | . . . . . . . . . . . . Impact Weapon 8 | . 2 . . 2 1 . 3 . . . . Slashing Weapon 3 | . . . . . 3 . . . . . . Piercing Weapon 5 | . . . . . 3 . . . . . 2 Special Melee Weapon 1 | . . . . . . . . 1 . . . Unidentified Prototypes 2 | . . . . . 1 . . . . 1 . Parts Lost 77 | . . 5 . . 13 . 11 26 1 . 21 Power 18 | . . 2 . . 3 . 3 7 . . 3 Propulsion 22 | . . 3 . . 3 . 3 6 . . 7 Utility 25 | . . . . . 5 . 4 9 . . 7 Weapon 12 | . . . . . 2 . 1 4 1 . 4 Highest Loss Streak 11 | . . 3 . . 5 . 11 10 1 . 8 To Critical Strikes . | . . . . . . . . . . . . Average Backups 11 | . 5 3 5 11 15 12 14 15 10 4 3 Power 1 | . 1 . 1 1 2 1 1 2 2 . . Propulsion 2 | . 1 . 1 1 3 5 4 2 1 1 1 Utility 5 | . . . . 3 7 5 5 7 4 3 2 Weapon 2 | . 2 3 3 3 1 1 2 2 . . . Tool/Special . | . . . . . . . . . . . . Unused Backups 43 | . 15 1 . 3 14 . . . 7 . 3 Power 12 | . 4 1 . . 4 . . . 3 . . Propulsion 12 | . 6 . . 1 2 . . . 2 . 1 Utility 10 | . 1 . . . 6 . . . 1 . 2 Weapon 5 | . 4 . . 1 . . . . . . . Tool/Special 4 | . . . . 1 2 . . . 1 . . Average Slot Usage (%) 82 | . 97 97 42 95 81 80 74 71 69 82 65 Engine 6 | . 14 12 . 13 3 11 5 4 . . . Core 1 | . . . . . 1 . . 3 7 9 2 Wheel 10 | . . . . 13 12 11 10 13 5 5 4 Flight 5 | . 25 27 . 11 . . . . . . . Device 5 | . . . . . 9 8 9 5 10 10 5 Storage 5 | . 1 . . 11 6 5 5 5 2 . . Processor 17 | . 11 14 14 14 20 27 25 16 15 19 23 Hackware 1 | . . . . . . . . 4 5 5 4 Protection 5 | . 12 14 14 2 6 1 . 3 4 5 1 Impact Weapon 11 | . 24 27 14 27 2 . 11 7 . . . Slashing Weapon 2 | . . . . . 4 5 . 2 5 5 1 Piercing Weapon 2 | . . . . . 7 5 . . . . . Peak Build Rating 133 | . 9 10 5 18 72 72 78 94 100 108 133 Average Rating 49 | . 8 8 5 16 57 71 68 78 84 105 88 On Entrance 42 | 6 6 9 5 5 18 55 72 69 60 100 108 Naked Turns . | . . . . . . . . . . . . Heaviest Build 133 | 11 11 8 3 29 123 116 133 126 106 52 64 Greatest Support 84 | 20 20 8 3 12 68 56 56 84 40 40 56 Greatest Overweight (x) 9 | . 1 1 . 2 9 2 3 6 6 1 3 Average Overweight (x) . | . . . . 1 1 2 2 1 2 . . Largest Inventory Capacity 25 | . 8 5 5 15 25 25 25 25 25 5 5 Average Capacity 15 | . 5 5 5 12 20 25 25 25 14 5 5 Most Carried 25 | . 8 5 5 15 25 19 23 25 18 5 5 Average Carried 13 | . 5 3 5 11 19 16 18 17 10 5 4 Final Capacity 25 | 8 5 5 5 15 25 25 25 25 5 5 5 Final Carried 20 | 6 5 5 5 15 20 17 16 16 5 5 5 Class Distribution -------------------- 49% | Mutant 42% | Gladiator 4% | Scavenger-Gladiator Dominant Class ---------------- Mutant | -10/Materials Mutant | -10/Subcaves Mutant | -8/Recycling Mutant | -8/Scraptown Gladiator | -6/Factory Gladiator | -5/Factory Gladiator | -5/DSF Gladiator | -4/Factory Mutant | -4/Waste Mutant | -4/Factory Mutant | -3/Research Resources | -11 -10 -10 -8 -8 -6 -5 -5 -4 -4 -4 -3 ----------- Run | Yrd Mat Sub Rec Scr Fac Fac DSF Fac Was Fac Res Matter Collected 1658 | 174 120 15 . 80 547 . 87 470 . . 165 Remotely . | . . . . . . . . . . . . Salvage Created 3227 | . 360 . . . 1481 . . 1268 . . 118 Parts 119 | . 21 . . . 65 . . 24 . . 9 Haulers Intercepted 2 | . 1 . . . 1 . . . . . . Recyclers Shooed 2 | . . . . . 2 . . . . . . Parts Field Recycled . | . . . . . . . . . . . . Retrieved Matter . | . . . . . . . . . . . . Parts Self-Destructed 5 | . . 5 . . . . . . . . . Prevented . | . . . . . . . . . . . . Kills | -11 -10 -10 -8 -8 -6 -5 -5 -4 -4 -4 -3 ------- Run | Yrd Mat Sub Rec Scr Fac Fac DSF Fac Was Fac Res Combat Hostiles Destroyed 55 | . 11 . . . 21 . . 21 . . 2 Melee 37 | . 6 . . . 17 . . 13 . . 1 Guns 5 | . 3 . . . . . . 1 . . 1 AOE 7 | . . . . . 3 . . 4 . . . Classes Destroyed 11 | . 4 . . . 6 . . 1 . . . Worker 3 | . . . . . 3 . . . . . . Tunneler 1 | . . . . . 1 . . . . . . Hauler 2 | . 1 . . . 1 . . . . . . Recycler 3 | . . . . . 2 . . 1 . . . Watcher 3 | . 2 . . . . . . 1 . . . Swarmer 6 | . 6 . . . . . . . . . . Grunt 26 | . 5 . . . 11 . . 10 . . . Duelist 1 | . . . . . 1 . . . . . . Sentry 2 | . . . . . 1 . . 1 . . . Hunter 3 | . . . . . . . . 2 . . 1 Programmer 17 | . . . . . 8 . . 8 . . 1 Best Kill Streak 5 | . 4 . . . 5 . . 5 . . 1 Combat Bots Only 5 | . 3 . . . 5 . . 4 . . 1 Max Kills in Single Turn 2 | . 2 . . . 1 . . 1 . . 1 Gunslinging 1 | . 1 . . . . . . . . . . Exploded 1 | . . . . . 1 . . 1 . . . Melee 1 | . 1 . . . 1 . . 1 . . 1 Uniques/NPCs Destroyed . | . . . . . . . . . . . . Combat | -11 -10 -10 -8 -8 -6 -5 -5 -4 -4 -4 -3 -------- Run | Yrd Mat Sub Rec Scr Fac Fac DSF Fac Was Fac Res Hostile Shots Fired 1101 | . 34 43 . . 237 . 175 298 1 . 313 Missed 353 | . 17 14 . . 69 . 48 87 . . 118 Hits 748 | . 17 29 . . 168 . 127 211 1 . 195 Melee 18 | . . . . . 17 . . . 1 . . Projectile 730 | . 17 29 . . 151 . 127 211 . . 195 AOE 2 | . . . . . 2 . . . . . . Critical Strikes 40 | . . . . . 15 . 1 12 1 . 11 Actively Blocked 2 | . . 1 . . . . . . 1 . . Part Disruptions 7 | . . . . . 1 . 5 1 . . . Damage Taken 13468 | . 156 368 . . 3296 . 1964 4125 58 . 3501 Core 2994 | . 67 95 . . 678 . 305 541 . . 1308 Absorbed by Shields 207 | . . . . . . . 73 134 . . . Redirected to Shielding 140 | . 3 29 . . 6 . . . 38 . 64 Core Remaining (%) 55 | 100 . . . 35 20 . 69 . . 52 . Volleys Fired 67 | . 4 . . . 14 . . 23 . . 26 Largest 3 | . 2 . . . 1 . . 2 . . 3 Hottest 177 | . 60 . . . 30 . . 130 . . 177 Shots Fired 78 | . 8 . . . 13 . . 24 . . 33 Gun 27 | . 8 . . . 5 . . 9 . . 5 Cannon 28 | . . . . . . . . . . . 28 Launcher 23 | . . . . . 8 . . 15 . . . Special . | . . . . . . . . . . . . Kinetic 37 | . 4 . . . 5 . . . . . 28 Thermal 5 | . . . . . . . . . . . 5 Explosive 23 | . . . . . 8 . . 15 . . . Electromagnetic 13 | . 4 . . . . . . 9 . . . Robot Hit Streak 14 | . 3 . . . 10 . . 14 . . 7 Robot Miss Streak 5 | . 2 . . . 1 . . 2 . . 5 Penetration Max . | . . . . . . . . . . . . Secondary Targets 1 | . 1 . . . . . . . . . . Max Gunslinging Chain 1 | . 1 . . . . . . . . . . Shots Hit Robots 189 | . 21 1 . . 69 . 2 77 . . 19 Core Hits 90 | . 8 . . . 36 . . 38 . . 8 Critical Kills 6 | . 1 . . . 1 . . 4 . . . Critical Parts Destroyed 12 | . 2 . . . 2 . . 8 . . . Critical Strikes 24 | . 3 . . . 6 . . 14 . . 1 Destroy 1 | . . . . . 1 . . . . . . Blast 1 | . . . . . . . . . . . 1 Smash 17 | . 3 . . . 2 . . 12 . . . Sever 2 | . . . . . . . . 2 . . . Impale 3 | . . . . . 3 . . . . . . Melee Attacks 294 | . 38 5 . . 133 2 2 110 . . 4 Impact 120 | . 38 5 . . 10 . 2 65 . . . Slashing 92 | . . . . . 52 1 . 37 . . 2 Piercing 82 | . . . . . 71 1 . 8 . . 2 Sneak Attacks 10 | . 2 . . . 7 . . 1 . . . Combat Hostiles . | . . . . . . . . . . . . Follow-up Attacks 28 | . 1 . . . 16 . . 11 . . . Damage Inflicted 8975 | . 786 37 . . 3251 . 110 4186 . . 605 Guns 334 | . 40 . . . 100 . . 105 . . 89 Cannons 409 | . . . . . . . . . . . 409 Explosions 1359 | . . . . . 639 . . 720 . . . Melee 6858 | . 746 37 . . 2512 . 110 3361 . . 92 Ramming 15 | . . . . . . . . . . . 15 Kinetic 526 | . 17 . . . 100 . . . . . 409 Thermal 89 | . . . . . . . . . . . 89 Explosive 1238 | . . . . . 639 . . 599 . . . Electromagnetic 249 | . 23 . . . . . . 226 . . . Impact 3646 | . 746 37 . . 382 . 110 2371 . . . Slashing 1739 | . . . . . 816 . . 923 . . . Piercing 1473 | . . . . . 1314 . . 67 . . 92 Highest Corruption 15 | . . . . . 4 . 2 15 15 15 10 Average Corruption 6 | . . . . . 2 . 1 7 15 15 6 Corruption Purged . | . . . . . . . . . . . . Corruption Blocked . | . . . . . . . . . . . . Effects 64 | . . . . . 15 . 1 30 13 2 3 Message Errors 13 | . . . . . 3 . . 7 3 . . Matter Fused 11 | . . . . . 3 . 1 4 2 . 1 Heat Flow Errors 7 | . . . . . 1 . . 5 1 . . Energy Discharges 7 | . . . . . 5 . . 2 . . . Parts Rejected 4 | . . . . . . . . 2 2 . . Parts Fused 1 | . . . . . . . . . . . 1 Data Loss (minor) 9 | . . . . . 1 . . 4 3 1 . Data Loss (major) 5 | . . . . . 2 . . 2 . 1 . Alerts 4 | . . . . . . . . 2 1 . 1 Misdirections 2 | . . . . . . . . 1 1 . . Weapon Failures 1 | . . . . . . . . 1 . . . Overload Shots . | . . . . . . . . . . . . Overflow Damage 1356 | . 199 . . . 240 . . 879 . . 38 Projectiles . | . . . . . . . . . . . . Explosions 32 | . . . . . 32 . . . . . . Melee 1324 | . 199 . . . 208 . . 879 . . 38 Knockbacks 32 | . 4 1 . . . . 1 18 . . 8 Impact 22 | . 4 1 . . . . 1 16 . . . Kinetic 7 | . . . . . . . . . . . 7 Secondary 3 | . . . . . . . . 2 . . 1 Self-Inflicted Damage 82 | . . . . . 80 . . . . . 2 Shots 7 | . . . . . 7 . . . . . . Rammed 1 | . . . . . . . . . . . 1 Targets Rammed 5 | . . . . . . . . . . . 5 Kicked 4 | . . . . . . . . . . . 4 Crushed . | . . . . . . . . . . . . Highest Temperature 384 | . 40 . . . 79 . 6 231 144 . 384 Average Temperature 148 | . 22 . . . 43 . 3 89 75 . 217 Received Heat Transfer 2399 | . 48 123 . . 804 . 362 632 . . 430 Effects 2 | . . . . . . . . . . . 2 Shutdowns 2 | . . . . . . . . . . . 2 Siege Activations . | . . . . . . . . . . . . Martial Activations . | . . . . . . . . . . . . Shielding Activations . | . . . . . . . . . . . . Robots Disrupted . | . . . . . . . . . . . . Combat Hostiles . | . . . . . . . . . . . . Robots Corrupted 11 | . 5 . . . 2 . . 4 . . . Combat Hostiles 6 | . 2 . . . 1 . . 3 . . . Parts Fried 24 | . 6 . . . 3 . . 15 . . . Impact Corruptions 42 | . 11 . . . 4 . . 27 . . . Robots Melted . | . . . . . . . . . . . . Combat Hostiles . | . . . . . . . . . . . . Parts Melted . | . . . . . . . . . . . . Heat Transferred 111 | . . . . . . . . . . . 111 Parts Sabotaged . | . . . . . . . . . . . . Parts Stolen . | . . . . . . . . . . . . Parts Stripped . | . . . . . . . . . . . . Power Chain Reactions . | . . . . . . . . . . . . Alert | -11 -10 -10 -8 -8 -6 -5 -5 -4 -4 -4 -3 ------- Run | Yrd Mat Sub Rec Scr Fac Fac DSF Fac Was Fac Res Maximum Alert Level 1 | . 1 . . . 1 . . 1 . . 1 Low Security (%) 79 | . 77 . 100 . 93 100 100 46 100 100 83 Level 1 20 | . 22 . . . 6 . . 53 . . 16 Level 2 . | . . . . . . . . . . . . Level 3 . | . . . . . . . . . . . . Level 4 . | . . . . . . . . . . . . Level 5 . | . . . . . . . . . . . . High Security . | . . . . . . . . . . . . Max Security . | . . . . . . . . . . . . Peak Influence 330 | . 252 . 6 . 230 111 60 330 76 . 303 Initial 111 | . . . . . . 111 60 . 76 . . Average 91 | . 97 . . . 86 97 25 148 25 . 51 Influence Increases 2781 | . 454 . 10 . 861 16 15 890 . . 535 Destroy 0b10 Robot/C 1100 | . 220 . . . 420 . . 420 . . 40 Destroy 0b10 Robot/NC 60 | . 15 . . . 35 . . 10 . . . Destroy Leader 260 | . 46 . . . 122 . . 82 . . 10 Successful Hack 120 | . 28 . 10 . 51 14 . 17 . . . Select Force Hacks 30 | . . . . . . . . 30 . . . Disable Machine 300 | . 15 . . . 75 . . 210 . . . Destroy Structure 176 | . 10 . . . 68 2 . 76 . . 20 Partial Spotted 30 | . 30 . . . . . . . . . . Lose Combat Pursuer 705 | . 90 . . . 90 . 15 45 . . 465 Influence Decreases 2478 | . 226 228 10 . 633 157 102 672 218 . 232 Entered New Map 396 | . . 110 . . . 117 27 . 142 . . Time Decay 1504 | . 226 98 10 . 543 40 . 412 66 . 109 Lost Part 578 | . . 20 . . 90 . 75 260 10 . 123 Squads Dispatched 32 | . 2 . . . 14 1 1 8 . . 6 Investigation 14 | . . . . . 6 1 . 3 . . 4 Extermination 11 | . . . . . 5 . . 4 . . 2 Reinforcement 5 | . 2 . . . 1 . 1 1 . . . Assault 2 | . . . . . 2 . . . . . . Garrison . | . . . . . . . . . . . . Intercept . | . . . . . . . . . . . . Searches Triggered . | . . . . . . . . . . . . Construction Impeded . | . . . . . . . . . . . . Haulers Reinforced . | . . . . . . . . . . . . Active Scanning Responses . | . . . . . . . . . . . . Cargo Convoy Interrupts . | . . . . . . . . . . . . Stealth | -11 -10 -10 -8 -8 -6 -5 -5 -4 -4 -4 -3 --------- Run | Yrd Mat Sub Rec Scr Fac Fac DSF Fac Was Fac Res Distress Signals 4 | . 2 . . . 1 . . 1 . . . Communications Jammed . | . . . . . . . . . . . . Distress Signals . | . . . . . . . . . . . . Times Spotted 155 | . 20 11 . . 39 2 9 32 6 . 36 Peak Tracking Total 13 | . 3 8 . . 6 1 8 4 6 . 13 Tactical Retreats 19 | . 3 1 . . 3 . 1 2 . . 9 Traps | -11 -10 -10 -8 -8 -6 -5 -5 -4 -4 -4 -3 ------- Run | Yrd Mat Sub Rec Scr Fac Fac DSF Fac Was Fac Res Traps Triggered 9 | . . 1 . . 3 . 2 2 . . 1 Indirectly . | . . . . . . . . . . . . Trap Hack Attempts . | . . . . . . . . . . . . Triggered . | . . . . . . . . . . . . Disarmed . | . . . . . . . . . . . . Reprogrammed . | . . . . . . . . . . . . Reused . | . . . . . . . . . . . . Traps Extracted . | . . . . . . . . . . . . Installed . | . . . . . . . . . . . . Triggered . | . . . . . . . . . . . . Machines | -11 -10 -10 -8 -8 -6 -5 -5 -4 -4 -4 -3 ---------- Run | Yrd Mat Sub Rec Scr Fac Fac DSF Fac Was Fac Res Machines Disabled 20 | . 1 . . . 5 . . 14 . . . Max in Single Turn 4 | . 1 . . . 3 . . 4 . . . Garrison Access 1 | . . . . . 1 . . . . . . Machines Repaired . | . . . . . . . . . . . . Machines Dismantled . | . . . . . . . . . . . . Machines Sabotaged . | . . . . . . . . . . . . Overloaded Fab Kills . | . . . . . . . . . . . . Hacking | -11 -10 -10 -8 -8 -6 -5 -5 -4 -4 -4 -3 --------- Run | Yrd Mat Sub Rec Scr Fac Fac DSF Fac Was Fac Res Machines Accessed 38 | . 6 . 2 6 12 3 . 5 . 1 3 Terminals 17 | . 5 . 2 . 4 2 . 3 . 1 . Fabricators 5 | . . . . . 3 . . 1 . . 1 Repair Stations . | . . . . . . . . . . . . Recycling Units 5 | . 1 . . . 3 1 . . . . . Scanalyzers 4 | . . . . . 2 . . 1 . . 1 Garrison Access 1 | . . . . . . . . . . . 1 Total Hacks 119 | . 27 . 14 22 29 6 . 11 . 1 9 Successful 77 | . 21 . 8 22 15 2 . 5 . . 4 Failed 42 | . 6 . 6 . 14 4 . 6 . 1 5 Catastrophic 10 | . . . . . 3 2 . 2 . 1 2 Database Lockouts . | . . . . . . . . . . . . Manual 52 | . 24 . 10 . 9 3 . 5 . 1 . Terminals 59 | . 23 . 14 . 9 4 . 8 . 1 . Fabricators 12 | . . . . . 8 . . 2 . . 2 Repair Stations . | . . . . . . . . . . . . Recycling Units 10 | . 4 . . . 4 2 . . . . . Scanalyzers 14 | . . . . . 8 . . 1 . . 5 Garrison Access 2 | . . . . . . . . . . . 2 Terminal Hacks 27 | . 2 . 1 22 . 1 . 1 . . . Record 15 | . . . . 14 . . . 1 . . . Robot Analysis 8 | . . . . 8 . . . . . . . Open DSF 1 | . . . . . . 1 . . . . . Zone Layout 3 | . 2 . 1 . . . . . . . . Fabricator Hacks 7 | . . . . . 3 . . 2 . . 2 Load Schematic 4 | . . . . . 2 . . 1 . . 1 Build 3 | . . . . . 1 . . 1 . . 1 Repair Station Hacks . | . . . . . . . . . . . . Recycling Unit Hacks 1 | . 1 . . . . . . . . . . Report Inventory 1 | . 1 . . . . . . . . . . Scanalyzer 9 | . . . . . 7 . . . . . 2 Insert Component 5 | . . . . . 4 . . . . . 1 Analyze 4 | . . . . . 3 . . . . . 1 Garrison Access Hacks . | . . . . . . . . . . . . Unauthorized Hacks 33 | . 18 . 7 . 5 1 . 2 . . . Terminals 27 | . 15 . 7 . 3 1 . 1 . . . Track 4 | . 2 . 2 . . . . . . . . Assimilate 2 | . 2 . . . . . . . . . . Botnet 10 | . 4 . 2 . 2 1 . 1 . . . Operators 3 | . 2 . 1 . . . . . . . . Skim 8 | . 5 . 2 . 1 . . . . . . Fabricators . | . . . . . . . . . . . . Repair Stations . | . . . . . . . . . . . . Recycling Units 5 | . 3 . . . 2 . . . . . . Reject 1 | . 1 . . . . . . . . . . Recyclers 1 | . 1 . . . . . . . . . . Mask 1 | . 1 . . . . . . . . . . Fedlink 2 | . . . . . 2 . . . . . . Scanalyzers 1 | . . . . . . . . 1 . . . Extract 1 | . . . . . . . . 1 . . . Garrison Access . | . . . . . . . . . . . . Data Cores Recovered . | . . . . . . . . . . . . Used . | . . . . . . . . . . . . Hacking Detections 27 | . 5 . 2 . 10 2 . 4 . 1 3 Full Trace Events 10 | . . . . . 4 1 . 2 . . 3 Feedback Events . | . . . . . . . . . . . . Feedback Blocked . | . . . . . . . . . . . . Robot Schematics Acquired . | . . . . . . . . . . . . Robots Built . | . . . . . . . . . . . . Authchips . | . . . . . . . . . . . . Time . | . . . . . . . . . . . . Total Robot Build Rating . | . . . . . . . . . . . . Part Schematics Acquired 11 | . . . . . 3 . . 8 . . . Parts Built 6 | . . . . . 2 . . 2 . . 2 Authchips . | . . . . . . . . . . . . Time 173 | . . . . . 47 . . 84 . . 42 Total Part Build Rating 26 | . . . . . 10 . . 8 . . 8 Parts Repaired . | . . . . . . . . . . . . Time . | . . . . . . . . . . . . Parts Recycled . | . . . . . . . . . . . . Recycled Matter . | . . . . . . . . . . . . Retrieved Matter . | . . . . . . . . . . . . Retrieved Components . | . . . . . . . . . . . . Parts Scanalyzed 5 | . . . . . 4 . . . . . 1 Part Schematics Acquired 3 | . . . . . 3 . . . . . . Parts Damaged 1 | . . . . . 1 . . . . . . Bothacking | -11 -10 -10 -8 -8 -6 -5 -5 -4 -4 -4 -3 ------------ Run | Yrd Mat Sub Rec Scr Fac Fac DSF Fac Was Fac Res Used RIF Installer . | . . . . . . . . . . . . Robots Hacked . | . . . . . . . . . . . . Non-combat . | . . . . . . . . . . . . Combat . | . . . . . . . . . . . . Robot Hacks Applied . | . . . . . . . . . . . . Relay Couplers Released 2 | . . . . . 2 . . . . . . Machine Destruction 2 | . . . . . 2 . . . . . . Fabnet Peak Effective % . | . . . . . . . . . . . . Robots Rewired . | . . . . . . . . . . . . Allies Hacked . | . . . . . . . . . . . . Hacks Repelled . | . . . . . . . . . . . . Allies | -11 -10 -10 -8 -8 -6 -5 -5 -4 -4 -4 -3 -------- Run | Yrd Mat Sub Rec Scr Fac Fac DSF Fac Was Fac Res Total Allies 1 | . 1 . . . . . . . . . . Largest Group 1 | . 1 . . . . . . . . . . Highest-Rated Group 10 | . 10 . . . . . . . . . . Highest-Rated Ally 10 | . 10 . . . . . . . . . . Total Orders 1 | . 1 . . . . . . . . . . ROAM 1 | . 1 . . . . . . . . . . Ally Attacks . | . . . . . . . . . . . . Total Damage . | . . . . . . . . . . . . Kills . | . . . . . . . . . . . . Allies Corrupted . | . . . . . . . . . . . . Allies Melted . | . . . . . . . . . . . . Intel | -11 -10 -10 -8 -8 -6 -5 -5 -4 -4 -4 -3 ------- Run | Yrd Mat Sub Rec Scr Fac Fac DSF Fac Was Fac Res Active Infowar (turns) 2273 | . . . . . 1245 . . 10 244 88 686 Sensors 1056 | . . . . . 34 . . 10 244 88 680 Seismic 868 | . . . . . 868 . . . . . . Triangulation 1210 | . . . . . 1210 . . . . . . Cloaking 6 | . . . . . . . . . . . 6 Robot Analysis Total 8 | . . . . 8 . . . . . . . Derelict Logs Recovered . | . . . . . . . . . . . . Drone Launches . | . . . . . . . . . . . . Drone Recoveries . | . . . . . . . . . . . . Exploration | -11 -10 -10 -8 -8 -6 -5 -5 -4 -4 -4 -3 ------------- Run | Yrd Mat Sub Rec Scr Fac Fac DSF Fac Was Fac Res Turns Passed 7937 | . 574 295 117 1879 2384 80 118 1381 244 88 777 Spaces Moved 6677 | 1 759 721 167 1660 1547 54 69 791 160 71 677 Core 574 | . . 9 167 35 3 . . . . . 360 Treads . | . . . . . . . . . . . . Legs 59 | 1 21 . . . 23 . . . . . 14 Wheels 4187 | . . . . 1616 1521 54 69 791 135 . 1 Hover 398 | . . . . . . . . . 25 71 302 Flight 1459 | . 738 712 . 9 . . . . . . . Fastest Speed 34 | 120 37 37 50 34 86 130 115 115 61 61 50 Average Speed 95 | 120 39 37 50 111 114 130 131 122 145 118 93 Slowest Speed 500 | 120 190 120 50 194 500 130 145 210 210 136 200 Overloaded Moves . | . . . . . . . . . . . . Propulsion Burnouts . | . . . . . . . . . . . . Robots Hopped 4 | . 4 . . . . . . . . . . Potential Cave-ins . | . . . . . . . . . . . . Cave-ins Triggered . | . . . . . . . . . . . . Exploration Rate (%) 41 | 2 75 61 40 92 33 2 85 13 78 3 16 Regions Visited 11 Branch Regions 3 Pre-discovered Areas 2 | . . 1 . . 1 . . . . . . Known Exits Taken 6 | . 1 1 1 1 1 1 . . . . . Unknown Exits Taken 2 | 1 . . . . . . . . . 1 . Scrap Searched 3 | . . . . 3 . . . . . . . Spaces Dug 76 | . 10 1 . . 42 1 . 20 . . 2 Terrain Destroyed 151 | . 10 1 . . 79 1 . 50 . . 10 Melee 76 | . 10 1 . . 42 1 . 20 . . 2 Projectile 8 | . . . . . . . . . . . 8 AOE 67 | . . . . . 37 . . 30 . . . Terrain Rammed . | . . . . . . . . . . . . Walls Destroyed . | . . . . . . . . . . . . Machines Disabled . | . . . . . . . . . . . . Actions | -11 -10 -10 -8 -8 -6 -5 -5 -4 -4 -4 -3 --------- Run | Yrd Mat Sub Rec Scr Fac Fac DSF Fac Was Fac Res Total 7741 | . 981 737 199 1691 1961 61 90 1000 168 75 778 Wait 454 | . 156 8 33 . 165 . 1 50 . . 41 Move 6660 | . 750 720 166 1659 1546 54 68 791 159 70 677 Hop 4 | . 4 . . . . . . . . . . Pick Up 84 | . 9 2 . 14 31 . 4 20 1 . 3 Fast Attach 71 | . 6 . . 6 23 1 4 9 7 2 13 Attach 52 | . 1 2 . 1 15 4 7 18 1 . 3 Detach 12 | . 2 . . 1 5 1 2 . . . 1 Swap 26 | . 2 . . 2 12 . 2 7 . 1 . Drop 71 | . 16 1 . 8 39 . . . . 2 5 Fire 67 | . 4 . . . 14 . . 23 . . 26 Melee 219 | . 31 4 . . 95 1 2 82 . . 4 Ram 1 | . . . . . . . . . . . 1 Kick 4 | . . . . . . . . . . . 4 Crush . | . . . . . . . . . . . . Escape Stasis 16 | . . . . . 16 . . . . . . Rewire . | . . . . . . . . . . . . Trap . | . . . . . . . . . . . . Miscellaneous . | . . . . . . . . . . . . Route ------- -11/Scrapyard -10/Materials (discovered 3 exits: [*Mat x2] / *Sub) -10/Subcaves (discovered 2 exits: *Mat / *Rec) -8/Recycling -8/Scraptown (discovered 2 exits: *Fac x2) -6/Factory -5/Factory -5/DSF -4/Factory -4/Waste -4/Factory -3/Research History --------- Turn | Location | Event 1 | -11/Scrapyard | Discovered new exit (range 0) 1 | -11/Scrapyard | Entered Materials 315 | -10/Materials | Discovered new exit (range 4) 330 | -10/Materials | Build established: Mutant 509 | -10/Materials | Discovered new exit (range 10) 571 | -10/Materials | Discovered new exit (range 9) 574 | -10/Materials | Identified exit to Subcaves 575 | -10/Materials | Entered Subcaves 579 | -10/Subcaves | Shifting Twisted Machinery released Spk. Treads 583 | -10/Subcaves | Shifting Twisted Machinery released Scrap Shield 614 | -10/Subcaves | Shifting Twisted Machinery released Battle Cannon 620 | -10/Subcaves | Discovered new exit (range 8) 622 | -10/Subcaves | Identified exit to Materials 659 | -10/Subcaves | Learned location of Zion (-7) 659 | -10/Subcaves | Met a Zionite searching for "candidates" 864 | -10/Subcaves | Discovered new exit (range 8) 867 | -10/Subcaves | Core integrity fell below 50% 869 | -10/Subcaves | Identified exit to Recycling 870 | -10/Subcaves | Entered Recycling 896 | -8/Recycling | Lost 3 parts (1p2n) 975 | -8/Recycling | Scanned before Scraplab entrance 982 | -8/Recycling | Entered Scraplab 986 | -8/Recycling | Discovered new exit (range 2) 986 | -8/Recycling | Identified exit to Scraptown 987 | -8/Recycling | Entered Scraptown 1231 | -8/Scraptown | Visited Spacefarers 1273 | -8/Scraptown | Visited Symbiants 1298 | -8/Scraptown | Visited UFD Registry 1298 | -8/Scraptown | Registered with UFD as "Steelslider" 1316 | -8/Scraptown | Visited Awakened 1595 | -8/Scraptown | Visited SPCMW 1630 | -8/Scraptown | Visited Cyclists 1641 | -8/Scraptown | Entered Cyclist Reading Room 1668 | -8/Scraptown | Visited Assassins FH 1743 | -8/Scraptown | Discovered new exit (range 7) 1752 | -8/Scraptown | Identified exit to Factory 1949 | -8/Scraptown | Visited Science Testing Area 1985 | -8/Scraptown | Visited Infowarlord's Domain 2050 | -8/Scraptown | Visited Abandonware Association 2063 | -8/Scraptown | Learned abandonware demo "MELTYB.EXE" 2083 | -8/Scraptown | Visited Scrapoid Pod Storage 2091 | -8/Scraptown | Found Scrapoid Pod 2113 | -8/Scraptown | Visited Research Penetration Think Tank 2398 | -8/Scraptown | Visited Observation Area 2462 | -8/Scraptown | Visited Supply Room 2521 | -8/Scraptown | Visited Analyses Database 2621 | -8/Scraptown | Discovered exit to Factory (range 5) 2778 | -8/Scraptown | Met Optimus 2778 | -8/Scraptown | Accepted into 0bPrime 2866 | -8/Scraptown | Entered Factory 2866 | -6/Factory | Evolved 8 slots: Propulsion x2, Utility x5, Weapon x1 3122 | -6/Factory | Lost 3 parts (1p2n) 3172 | -6/Factory | Build established: Gladiator 3633 | -6/Factory | Build established: Scavenger-Gladiator 3967 | -6/Factory | Build established: Gladiator 4300 | -6/Factory | Core integrity fell below 50% 4520 | -6/Factory | Loaded intel: 8 recycling unit locations 4892 | -6/Factory | Learned location of Protoforge (-3) 4963 | -6/Factory | Spotted B-75 Beast 5136 | -6/Factory | Fabricated Adv. Melee Analysis Suite? 5207 | -6/Factory | Lost 5 parts (1p1n1u2w) 5244 | -6/Factory | Discovered new exit (range 7) 5249 | -6/Factory | Identified exit to Factory 5250 | -6/Factory | Entered another Factory area 5250 | -5/Factory | Evolved 2 slots: Power x1, Utility x1 5330 | -5/Factory | Identified exit to DSF 5330 | -5/Factory | Entered DSF 5348 | -5/DSF | Additional patrols routed to DSF 5398 | -5/DSF | Discovered new exit (range 14) 5448 | -5/DSF | Entered Factory 5448 | -4/Factory | Evolved 2 slots: Propulsion x2 5472 | -4/Factory | Lost 11 parts (3p3n4u1w) 5627 | -4/Factory | Fabricated Arm. Huge Wheel? 5860 | -4/Factory | Lost 3 parts (1p2u) 6498 | -4/Factory | Lost 10 parts (3p2n4u1w) 6587 | -4/Factory | System corruption reached 10% 6645 | -4/Factory | Lost 3 parts (1u2w) 6792 | -4/Factory | Lost 8 parts (2p3n2u1w) 6829 | -4/Factory | Sucked down chute 6829 | -4/Factory | Entered Waste 6935 | -4/Waste | Spotted C-40 Crusher 6937 | -4/Waste | Spotted C-40 Crusher 6939 | -4/Waste | Spotted C-40 Crusher 6944 | -4/Waste | Spotted C-40 Crusher 6948 | -4/Waste | Crushed by Compactor (1 part destroyed, 1 dropped) 6961 | -4/Waste | Spotted C-40 Crusher 6991 | -4/Waste | Spotted C-40 Crusher 7056 | -4/Waste | Discovered new exit (range 10) 7065 | -4/Waste | Build established: Mutant 7073 | -4/Waste | Entered Factory 7147 | -4/Factory | Discovered new exit (range 10) 7161 | -4/Factory | Entered Research 7161 | -3/Research | Evolved 2 slots: Utility x1, Weapon x1 7221 | -3/Research | Fabricated Arm. Huge Wheel? 7566 | -3/Research | Lost 8 parts (1p2n2u3w) 7752 | -3/Research | Lost 4 parts (2p1n1w) 7857 | -3/Research | Core integrity fell below 50% 7880 | -3/Research | Lost 4 parts (2n2u) 7909 | -3/Research | Core integrity fell below 20% 7932 | -3/Research | System corruption reached 10% 7938 | -3/Research | Destroyed by P-80 Master with Gamma Rifle Last Messages --------------- 07888_ Cmb. Antigrav System destroyed. 07903_ System corrupted: Matter fused (-9). 07905_ ALERT: Potential suspicious activity detected, Programmers report to Research Zone 9E. 07905_ Penetrated by Slug. 07905_ Adv. Melee Analysis Suite destroyed. 07908_ Penetrated by Slug. 07908_ Slug penetrates Wall. 07908_ Imp. Target Analyzer destroyed. 07909_ P-80 Master resets Y-72 Warden, system corruption cleaned. 07911_ Slug penetrates Wall. 07918_ Acquired Lance. 07921_ Acquired Unknown Piercing Weapon. 07921_ Identified Enh. Force Lance. 07930_ Destroyed Sml. Battery. 07933_ P-80 Master destroyed. 07934_ System corrupted: Lance fused. 07934_ Acquired 68 matter. Map ----- +----------------------------------------------------+ | ?????????????????????????????????????? | | ?????????????????????????????????????? | | ?????????????????????????????????????? | | ?????????????????????????????????????? | | ?????????????????????????????????????? | | ???????????????????????? ??????????? | | ???????????????????????? ????????? | | ???????????????????????? ?????? | | ########???????????????? #????? | | #???????????????# #????? | | #???????????????# #????? | | """" #???????????????# #????? | | ""R" #???????????????# #????? | | "" " #???????????????# #????? | | #???????????????# #????? | | #???????????????# #????? | | #???????????????# #????? | | #???????????????# #????? | | ###+####?######????????# #??????? | | ##### ########## #??????? | | #??????? | | % #??????? | | ##### ########## = #??????? | | ######???## ##????????# [!! #??????? | | ??????????# #??????######+####??????? | | ??????????# +??????# @ = #??????? | | ??????????# #??????# /! *! #??????? | | ??????????# #??????# /! #??????? | | ??????????# #????? pp #??????? | | ??????????# #??? # #??????? | | ??????????# #? ?# #??????? | | ??????????# #####??# #??????? | | ??????????# #??????# #??????? | | ?????????? ??????###########??????? | | ?????????? ???????????????????????? | | ????????????H????????????????????????? | | ???????????????????????????????? | | #####????????????????????????????????? | | ?????????????????????????????????????? | | ?????????????????????????????????????? | | ?????????????????????????????????????? | | ?????????????????????????????????????? | | ?????????????????????????????????????? | | ?????????????????????????????????????? | | ?????????????????????????????????????? | | ?????????????????????????????????????? | | ?????????????????????????????????????? | | ?????????????????????????????????????? | | ???????????????????????????????##????? | | ??????????###############?????# #????? | +----------------------------------------------------+ Best States ------------- Heat Dissipation 81 Energy Generation 37 Energy Capacity 550 Matter Stores 300 Matter Capacity 300 Sight Range 16 Robot Scan Range 16 Terrain Scan Density 10 Armor Coverage 600 Core Shielding 20 Propulsion Shielding 66 Evasion (%) 70 Melee Accuracy 30 Target Analysis 9 Matter Filtering 50 Salvage Targeting 2 Authchip Count 1 Item Schematics ----------------- Imp. Melee Analysis Suite | -6/Factory | Scanalyzed Adv. Melee Analysis Suite | -6/Factory | Scanalyzed Arm. Huge Wheel | -6/Factory | Scanalyzed Katana | -4/Factory | Extracted Lgt. Antimatter Reactor | -4/Factory | Extracted Phase Gun | -4/Factory | Extracted Transmission Jammer | -4/Factory | Extracted Linear Gravjet | -4/Factory | Extracted Hardcell Cannon | -4/Factory | Extracted Tesla Rifle | -4/Factory | Extracted Adv. Power Amplifier | -4/Factory | Extracted Robot Schematics ------------------ None Fabricated ------------ Adv. Melee Analysis Suite | x2 | -6/Factory Arm. Huge Wheel | x2 | -4/Factory Arm. Huge Wheel | x2 | -3/Research Repaired ---------- Nothing Alien Tech Used ----------------- None Achievements -------------- None Challenges ------------ None Game ------ Seed CommEncryptedAirjet Manual? 0 Play Time 02:24:04 Cumulative 140.1 hours Start 2025.07.07 @ 23:35:11 End 2025.07.08 @ 03:08:44 Sessions 5 Manual Loads 0 Difficulty Rogue Special Mode None Game No. 139 Rogue 137 Adventurer 2 Explorer 0 Win Type - Total 0 Types 0/0/0/0/0/0/0/0/0/0 Lore% 61 Gallery% 56 Achievement% 44 Wizard Run 0 Options --------- Layout 2 ASCII 0 Keyboard 1 Movement Vi Keybinds 0 Fullscreen 1 Font 48/Smallcaps Map View 50x44 Zoom Use 7% Tactical HUD 1 Map Filters NONE Filters NONE Steam 1 RUN: fe1bf890-4645-4858-af30-c77a4a676877